Workbook

Sheet data
A1: ANNEE | B1: N° d’ordre | C1: Nom et Prénom | D1: Article | E1: Produit | F1: Droits dus | G1: Pénalités | H1: Total | I1: QUITTANCE | J1: DATE | K1: MONTANT | L1: Reste
A2: 2014 | B2: 201 | C2: Abdelkader | D2: 4402020000 | E2: FAIENCE | F2: 22853 | G2: =SUM(tbData[[#This Row],[Droits dus]]*10/100) -> 2285.3 | H2: =SUM(F2:G2) -> 25138.3 | I2: 2285086 | J2: 2014-02-23 | K2: 17463 | L2: =SUM(Tableau2[[#This Row],[Total du rôle]]-K2) -> 7675.3
A3: 2014 | B3: 202 | C3: Abdelkader | D3: 4402020001 | E3: FAIENCE | F3: 22854 | G3: =SUM(tbData[[#This Row],[Droits dus]]*10/100) -> 2285.4 | H3: =SUM(F3:G3) -> 25139.4 | I3: 2285087 | J3: 2014-02-24 | K3: 17464 | L3: =SUM(Tableau2[[#This Row],[Total du rôle]]-K3) -> 7675.4
A4: 2014 | B4: 203 | C4: Abdelkader | D4: 4402020002 | E4: FAIENCE | F4: 22855 | G4: =SUM(tbData[[#This Row],[Droits dus]]*10/100) -> 2285.5 | H4: 25140.5 | I4: 2285088 | J4: 2014-02-25 | K4: 17465 | L4: =SUM(Tableau2[[#This Row],[Total du rôle]]-K4) -> 7675.5
A5: 2014 | B5: 204 | C5: Abdelkader | D5: 4402020003 | E5: FAIENCE | F5: 22856 | G5: =SUM(tbData[[#This Row],[Droits dus]]*10/100) -> 2285.6 | H5: 25141.6 | I5: 2285089 | J5: 2014-02-26 | K5: 17466 | L5: =SUM(Tableau2[[#This Row],[Total du rôle]]-K5) -> 7675.6
A6: 2014 | B6: 205 | C6: Abdelkader | D6: 4402020004 | E6: FAIENCE | F6: 22857 | G6: =SUM(tbData[[#This Row],[Droits dus]]*10/100) -> 2285.7 | H6: 25142.7 | I6: 2285090 | J6: 2014-02-27 | K6: 17467 | L6: =SUM(Tableau2[[#This Row],[Total du rôle]]-K6) -> 7675.7
A7: 2014 | B7: 206 | C7: Abdelkader | D7: 4402020005 | E7: FAIENCE | F7: 22858 | G7: =SUM(tbData[[#This Row],[Droits dus]]*10/100) -> 2285.8 | H7: 25143.8 | I7: 2285091 | J7: 2014-02-28 | K7: 17468 | L7: =SUM(Tableau2[[#This Row],[Total du rôle]]-K7) -> 7675.8
A8: 2014 | B8: 207 | C8: Abdelkader | D8: 4402020006 | E8: FAIENCE | F8: 22859 | G8: =SUM(tbData[[#This Row],[Droits dus]]*10/100) -> 2285.9 | H8: 25144.9 | I8: 2285092 | J8: 2014-03-01 | K8: 17469 | L8: =SUM(Tableau2[[#This Row],[Total du rôle]]-K8) -> 7675.9
A9: 2014 | B9: 208 | C9: Abdelkader | D9: 4402020007 | E9: FAIENCE | F9: 22860 | G9: =SUM(tbData[[#This Row],[Droits dus]]*10/100) -> 2286 | H9: 25146 | I9: 2285093 | J9: 2014-03-02 | K9: 17470 | L9: =SUM(Tableau2[[#This Row],[Total du rôle]]-K9) -> 7676
A10: 2014 | B10: 209 | C10: Abdelkader | D10: 4402020008 | E10: FAIENCE | F10: 22861 | G10: =SUM(tbData[[#This Row],[Droits dus]]*10/100) -> 2286.1 | H10: 25147.1 | I10: 2285094 | J10: 2014-03-03 | K10: 17471 | L10: =SUM(Tableau2[[#This Row],[Total du rôle]]-K10) -> 7676.1
A11: 2014 | B11: 210 | C11: Abdelkader | D11: 4402020009 | E11: FAIENCE | F11: 22862 | G11: =SUM(tbData[[#This Row],[Droits dus]]*10/100) -> 2286.2 | H11: 25148.2 | I11: 2285095 | J11: 2014-03-04 | K11: 17472 | L11: =SUM(Tableau2[[#This Row],[Total du rôle]]-K11) -> 7676.2
A12: 2014 | B12: 211 | C12: Abdelkader | D12: 4402020010 | E12: FAIENCE | F12: 22863 | G12: =SUM(tbData[[#This Row],[Droits dus]]*10/100) -> 2286.3 | H12: 25149.3 | I12: 2285096 | J12: 2014-03-05 | K12: 17473 | L12: =SUM(Tableau2[[#This Row],[Total du rôle]]-K12) -> 7676.3
H13: 0 | L13: =SUM(Tableau2[[#This Row],[Total du rôle]]-K13) -> 0
H14: 0 | L14: =SUM(Tableau2[[#This Row],[Total du rôle]]-K14) -> 0
H15: 0 | L15: =SUM(Tableau2[[#This Row],[Total du rôle]]-K15) -> 0
H16: 0 | L16: =SUM(Tableau2[[#This Row],[Total du rôle]]-K16) -> 0
H17: 0 | L17: =SUM(Tableau2[[#This Row],[Total du rôle]]-K17) -> 0
H18: 0 | L18: =SUM(Tableau2[[#This Row],[Total du rôle]]-K18) -> 0
H19: 0 | L19: =SUM(Tableau2[[#This Row],[Total du rôle]]-K19) -> 0
H20: 0 | L20: =SUM(Tableau2[[#This Row],[Total du rôle]]-K20) -> 0
H21: 0 | L21: =SUM(Tableau2[[#This Row],[Total du rôle]]-K21) -> 0
H22: 0 | L22: =SUM(Tableau2[[#This Row],[Total du rôle]]-K22) -> 0
H23: 0 | L23: =SUM(Tableau2[[#This Row],[Total du rôle]]-K23) -> 0
H24: 0 | L24: =SUM(Tableau2[[#This Row],[Total du rôle]]-K24) -> 0
H25: 0 | L25: =SUM(Tableau2[[#This Row],[Total du rôle]]-K25) -> 0
H26: 0 | L26: =SUM(Tableau2[[#This Row],[Total du rôle]]-K26) -> 0
H27: 0 | L27: =SUM(Tableau2[[#This Row],[Total du rôle]]-K27) -> 0
H28: 0 | L28: =SUM(Tableau2[[#This Row],[Total du rôle]]-K28) -> 0
H29: 0 | L29: =SUM(Tableau2[[#This Row],[Total du rôle]]-K29) -> 0
H30: 0 | L30: =SUM(Tableau2[[#This Row],[Total du rôle]]-K30) -> 0
H31: 0 | L31: =SUM(Tableau2[[#This Row],[Total du rôle]]-K31) -> 0
H32: 0 | L32: =SUM(Tableau2[[#This Row],[Total du rôle]]-K32) -> 0
H33: 0 | L33: =SUM(Tableau2[[#This Row],[Total du rôle]]-K33) -> 0
H34: 0 | L34: =SUM(Tableau2[[#This Row],[Total du rôle]]-K34) -> 0
H35: 0 | L35: =SUM(Tableau2[[#This Row],[Total du rôle]]-K35) -> 0
H36: 0 | L36: =SUM(Tableau2[[#This Row],[Total du rôle]]-K36) -> 0
H37: 0 | L37: =SUM(Tableau2[[#This Row],[Total du rôle]]-K37) -> 0
H38: 0 | L38: =SUM(Tableau2[[#This Row],[Total du rôle]]-K38) -> 0
H39: 0 | L39: =SUM(Tableau2[[#This Row],[Total du rôle]]-K39) -> 0
H40: 0 | L40: =SUM(Tableau2[[#This Row],[Total du rôle]]-K40) -> 0
H41: 0 | L41: =SUM(Tableau2[[#This Row],[Total du rôle]]-K41) -> 0
H42: 0 | L42: =SUM(Tableau2[[#This Row],[Total du rôle]]-K42) -> 0
H43: 0 | L43: =SUM(Tableau2[[#This Row],[Total du rôle]]-K43) -> 0
H44: 0 | L44: =SUM(Tableau2[[#This Row],[Total du rôle]]-K44) -> 0
H45: 0 | L45: =SUM(Tableau2[[#This Row],[Total du rôle]]-K45) -> 0
H46: 0 | L46: =SUM(Tableau2[[#This Row],[Total du rôle]]-K46) -> 0
H47: 0 | L47: =SUM(Tableau2[[#This Row],[Total du rôle]]-K47) -> 0
H48: 0 | L48: =SUM(Tableau2[[#This Row],[Total du rôle]]-K48) -> 0
H49: 0 | L49: =SUM(Tableau2[[#This Row],[Total du rôle]]-K49) -> 0
H50: 0 | L50: =SUM(Tableau2[[#This Row],[Total du rôle]]-K50) -> 0
H51: 0 | L51: =SUM(Tableau2[[#This Row],[Total du rôle]]-K51) -> 0
H52: 0 | L52: =SUM(Tableau2[[#This Row],[Total du rôle]]-K52) -> 0
H53: 0 | L53: =SUM(Tableau2[[#This Row],[Total du rôle]]-K53) -> 0
H54: 0 | L54: =SUM(Tableau2[[#This Row],[Total du rôle]]-K54) -> 0
H55: 0 | L55: =SUM(Tableau2[[#This Row],[Total du rôle]]-K55) -> 0
H56: 0 | L56: =SUM(Tableau2[[#This Row],[Total du rôle]]-K56) -> 0
H57: 0 | L57: =SUM(Tableau2[[#This Row],[Total du rôle]]-K57) -> 0
H58: 0 | L58: =SUM(Tableau2[[#This Row],[Total du rôle]]-K58) -> 0
H59: 0 | L59: =SUM(Tableau2[[#This Row],[Total du rôle]]-K59) -> 0
H60: 0 | L60: =SUM(Tableau2[[#This Row],[Total du rôle]]-K60) -> 0
H61: 0 | L61: =SUM(Tableau2[[#This Row],[Total du rôle]]-K61) -> 0
H62: 0 | L62: =SUM(Tableau2[[#This Row],[Total du rôle]]-K62) -> 0
H63: 0 | L63: =SUM(Tableau2[[#This Row],[Total du rôle]]-K63) -> 0
H64: 0 | L64: =SUM(Tableau2[[#This Row],[Total du rôle]]-K64) -> 0
H65: 0 | L65: =SUM(Tableau2[[#This Row],[Total du rôle]]-K65) -> 0
H66: 0 | L66: =SUM(Tableau2[[#This Row],[Total du rôle]]-K66) -> 0
H67: =SUM(F67:G67) -> 0 | L67: =SUM(Tableau2[[#This Row],[Total du rôle]]-K67) -> 0
H68: 0 | L68: =SUM(Tableau2[[#This Row],[Total du rôle]]-K68) -> 0
H69: 0 | L69: =SUM(Tableau2[[#This Row],[Total du rôle]]-K69) -> 0
H70: 0 | L70: =SUM(Tableau2[[#This Row],[Total du rôle]]-K70) -> 0
H71: 0 | L71: =SUM(Tableau2[[#This Row],[Total du rôle]]-K71) -> 0
H72: 0 | L72: =SUM(Tableau2[[#This Row],[Total du rôle]]-K72) -> 0
H73: 0 | L73: =SUM(Tableau2[[#This Row],[Total du rôle]]-K73) -> 0
H74: 0 | L74: =SUM(Tableau2[[#This Row],[Total du rôle]]-K74) -> 0
H75: 0 | L75: =SUM(Tableau2[[#This Row],[Total du rôle]]-K75) -> 0
H76: 0 | L76: =SUM(Tableau2[[#This Row],[Total du rôle]]-K76) -> 0
H77: 0 | L77: =SUM(Tableau2[[#This Row],[Total du rôle]]-K77) -> 0
H78: 0 | L78: =SUM(Tableau2[[#This Row],[Total du rôle]]-K78) -> 0
H79: 0 | L79: =SUM(Tableau2[[#This Row],[Total du rôle]]-K79) -> 0
H80: 0 | L80: =SUM(Tableau2[[#This Row],[Total du rôle]]-K80) -> 0
H81: 0 | L81: =SUM(Tableau2[[#This Row],[Total du rôle]]-K81) -> 0
H82: 0 | L82: =SUM(Tableau2[[#This Row],[Total du rôle]]-K82) -> 0
H83: 0 | L83: =SUM(Tableau2[[#This Row],[Total du rôle]]-K83) -> 0
H84: 0 | L84: =SUM(Tableau2[[#This Row],[Total du rôle]]-K84) -> 0
H85: 0 | L85: =SUM(Tableau2[[#This Row],[Total du rôle]]-K85) -> 0
H86: 0 | L86: =SUM(Tableau2[[#This Row],[Total du rôle]]-K86) -> 0
H87: 0 | L87: =SUM(Tableau2[[#This Row],[Total du rôle]]-K87) -> 0
H88: 0 | L88: =SUM(Tableau2[[#This Row],[Total du rôle]]-K88) -> 0
H89: 0 | L89: =SUM(Tableau2[[#This Row],[Total du rôle]]-K89) -> 0
H90: 0 | L90: =SUM(Tableau2[[#This Row],[Total du rôle]]-K90) -> 0
H91: 0 | L91: =SUM(Tableau2[[#This Row],[Total du rôle]]-K91) -> 0
H92: 0 | L92: =SUM(Tableau2[[#This Row],[Total du rôle]]-K92) -> 0
H93: 0 | L93: =SUM(Tableau2[[#This Row],[Total du rôle]]-K93) -> 0
H94: 0 | L94: =SUM(Tableau2[[#This Row],[Total du rôle]]-K94) -> 0
H95: 0 | L95: =SUM(Tableau2[[#This Row],[Total du rôle]]-K95) -> 0
H96: 0 | L96: =SUM(Tableau2[[#This Row],[Total du rôle]]-K96) -> 0
H97: 0 | L97: =SUM(Tableau2[[#This Row],[Total du rôle]]-K97) -> 0
H98: 0 | L98: =SUM(Tableau2[[#This Row],[Total du rôle]]-K98) -> 0
H99: 0 | L99: =SUM(Tableau2[[#This Row],[Total du rôle]]-K99) -> 0
H100: 0 | L100: =SUM(Tableau2[[#This Row],[Total du rôle]]-K100) -> 0
H101: 0 | L101: =SUM(Tableau2[[#This Row],[Total du rôle]]-K101) -> 0
H102: 0 | L102: =SUM(Tableau2[[#This Row],[Total du rôle]]-K102) -> 0
H103: 0 | L103: =SUM(Tableau2[[#This Row],[Total du rôle]]-K103) -> 0
H104: 0 | L104: =SUM(Tableau2[[#This Row],[Total du rôle]]-K104) -> 0
H105: 0 | L105: =SUM(Tableau2[[#This Row],[Total du rôle]]-K105) -> 0
H106: 0 | L106: =SUM(Tableau2[[#This Row],[Total du rôle]]-K106) -> 0
H107: 0 | L107: =SUM(Tableau2[[#This Row],[Total du rôle]]-K107) -> 0
H108: 0 | L108: =SUM(Tableau2[[#This Row],[Total du rôle]]-K108) -> 0
H109: 0 | L109: =SUM(Tableau2[[#This Row],[Total du rôle]]-K109) -> 0
H110: 0 | L110: =SUM(Tableau2[[#This Row],[Total du rôle]]-K110) -> 0
H111: 0 | L111: =SUM(Tableau2[[#This Row],[Total du rôle]]-K111) -> 0
H112: 0 | L112: =SUM(Tableau2[[#This Row],[Total du rôle]]-K112) -> 0
H113: 0 | L113: =SUM(Tableau2[[#This Row],[Total du rôle]]-K113) -> 0
H114: 0 | L114: =SUM(Tableau2[[#This Row],[Total du rôle]]-K114) -> 0
H115: 0 | L115: =SUM(Tableau2[[#This Row],[Total du rôle]]-K115) -> 0
H116: 0 | L116: =SUM(Tableau2[[#This Row],[Total du rôle]]-K116) -> 0
H117: 0 | L117: =SUM(Tableau2[[#This Row],[Total du rôle]]-K117) -> 0
H118: 0 | L118: =SUM(Tableau2[[#This Row],[Total du rôle]]-K118) -> 0
H119: 0 | L119: =SUM(Tableau2[[#This Row],[Total du rôle]]-K119) -> 0
H120: 0 | L120: =SUM(Tableau2[[#This Row],[Total du rôle]]-K120) -> 0
H121: 0 | L121: =SUM(Tableau2[[#This Row],[Total du rôle]]-K121) -> 0
H122: 0 | L122: =SUM(Tableau2[[#This Row],[Total du rôle]]-K122) -> 0
H123: 0 | L123: =SUM(Tableau2[[#This Row],[Total du rôle]]-K123) -> 0
H124: 0 | L124: =SUM(Tableau2[[#This Row],[Total du rôle]]-K124) -> 0
H125: 0 | L125: =SUM(Tableau2[[#This Row],[Total du rôle]]-K125) -> 0
H126: 0 | L126: =SUM(Tableau2[[#This Row],[Total du rôle]]-K126) -> 0
H127: 0 | L127: =SUM(Tableau2[[#This Row],[Total du rôle]]-K127) -> 0
H128: 0 | L128: =SUM(Tableau2[[#This Row],[Total du rôle]]-K128) -> 0
H129: 0 | L129: =SUM(Tableau2[[#This Row],[Total du rôle]]-K129) -> 0
H130: 0 | L130: =SUM(Tableau2[[#This Row],[Total du rôle]]-K130) -> 0
H131: =SUM(F131:G131) -> 0 | L131: =SUM(Tableau2[[#This Row],[Total du rôle]]-K131) -> 0
H132: =SUM(F132:G132) -> 0 | L132: =SUM(Tableau2[[#This Row],[Total du rôle]]-K132) -> 0
H133: 0 | L133: =SUM(Tableau2[[#This Row],[Total du rôle]]-K133) -> 0
H134: 0 | L134: =SUM(Tableau2[[#This Row],[Total du rôle]]-K134) -> 0
H135: 0 | L135: =SUM(Tableau2[[#This Row],[Total du rôle]]-K135) -> 0
H136: 0 | L136: =SUM(Tableau2[[#This Row],[Total du rôle]]-K136) -> 0
H137: 0 | L137: =SUM(Tableau2[[#This Row],[Total du rôle]]-K137) -> 0
H138: 0 | L138: =SUM(Tableau2[[#This Row],[Total du rôle]]-K138) -> 0
H139: 0 | L139: =SUM(Tableau2[[#This Row],[Total du rôle]]-K139) -> 0
H140: 0 | L140: =SUM(Tableau2[[#This Row],[Total du rôle]]-K140) -> 0
H141: 0 | L141: =SUM(Tableau2[[#This Row],[Total du rôle]]-K141) -> 0
H142: 0 | L142: =SUM(Tableau2[[#This Row],[Total du rôle]]-K142) -> 0
H143: 0 | L143: =SUM(Tableau2[[#This Row],[Total du rôle]]-K143) -> 0
H144: 0 | L144: =SUM(Tableau2[[#This Row],[Total du rôle]]-K144) -> 0
H145: 0 | L145: =SUM(Tableau2[[#This Row],[Total du rôle]]-K145) -> 0
H146: 0 | L146: =SUM(Tableau2[[#This Row],[Total du rôle]]-K146) -> 0
H147: 0 | L147: =SUM(Tableau2[[#This Row],[Total du rôle]]-K147) -> 0
H148: 0 | L148: =SUM(Tableau2[[#This Row],[Total du rôle]]-K148) -> 0
H149: 0 | L149: =SUM(Tableau2[[#This Row],[Total du rôle]]-K149) -> 0
H150: 0 | L150: =SUM(Tableau2[[#This Row],[Total du rôle]]-K150) -> 0
H151: 0 | L151: =SUM(Tableau2[[#This Row],[Total du rôle]]-K151) -> 0
H152: 0 | L152: =SUM(Tableau2[[#This Row],[Total du rôle]]-K152) -> 0
H153: 0 | L153: =SUM(Tableau2[[#This Row],[Total du rôle]]-K153) -> 0
H154: 0 | L154: =SUM(Tableau2[[#This Row],[Total du rôle]]-K154) -> 0
H155: 0 | L155: =SUM(Tableau2[[#This Row],[Total du rôle]]-K155) -> 0
H156: 0 | L156: =SUM(Tableau2[[#This Row],[Total du rôle]]-K156) -> 0
H157: 0 | L157: =SUM(Tableau2[[#This Row],[Total du rôle]]-K157) -> 0
H158: 0 | L158: =SUM(Tableau2[[#This Row],[Total du rôle]]-K158) -> 0
H159: 0 | L159: =SUM(Tableau2[[#This Row],[Total du rôle]]-K159) -> 0
H160: 0 | L160: =SUM(Tableau2[[#This Row],[Total du rôle]]-K160) -> 0
H161: 0 | L161: =SUM(Tableau2[[#This Row],[Total du rôle]]-K161) -> 0
H162: 0 | L162: =SUM(Tableau2[[#This Row],[Total du rôle]]-K162) -> 0
H163: 0 | L163: =SUM(Tableau2[[#This Row],[Total du rôle]]-K163) -> 0
H164: 0 | L164: =SUM(Tableau2[[#This Row],[Total du rôle]]-K164) -> 0
H165: 0 | L165: =SUM(Tableau2[[#This Row],[Total du rôle]]-K165) -> 0
H166: 0 | L166: =SUM(Tableau2[[#This Row],[Total du rôle]]-K166) -> 0
H167: 0 | L167: =SUM(Tableau2[[#This Row],[Total du rôle]]-K167) -> 0
H168: 0 | L168: =SUM(Tableau2[[#This Row],[Total du rôle]]-K168) -> 0
H169: 0 | L169: =SUM(Tableau2[[#This Row],[Total du rôle]]-K169) -> 0
H170: 0 | L170: =SUM(Tableau2[[#This Row],[Total du rôle]]-K170) -> 0
H171: 0 | L171: =SUM(Tableau2[[#This Row],[Total du rôle]]-K171) -> 0
H172: 0 | L172: =SUM(Tableau2[[#This Row],[Total du rôle]]-K172) -> 0
H173: 0 | L173: =SUM(Tableau2[[#This Row],[Total du rôle]]-K173) -> 0
H174: 0 | L174: =SUM(Tableau2[[#This Row],[Total du rôle]]-K174) -> 0
H175: 0 | L175: =SUM(Tableau2[[#This Row],[Total du rôle]]-K175) -> 0
H176: 0 | L176: =SUM(Tableau2[[#This Row],[Total du rôle]]-K176) -> 0
H177: 0 | L177: =SUM(Tableau2[[#This Row],[Total du rôle]]-K177) -> 0
H178: 0 | L178: =SUM(Tableau2[[#This Row],[Total du rôle]]-K178) -> 0
H179: 0 | L179: =SUM(Tableau2[[#This Row],[Total du rôle]]-K179) -> 0
H180: 0 | L180: =SUM(Tableau2[[#This Row],[Total du rôle]]-K180) -> 0
H181: 0 | L181: =SUM(Tableau2[[#This Row],[Total du rôle]]-K181) -> 0
H182: 0 | L182: =SUM(Tableau2[[#This Row],[Total du rôle]]-K182) -> 0
H183: 0 | L183: =SUM(Tableau2[[#This Row],[Total du rôle]]-K183) -> 0
H184: 0 | L184: =SUM(Tableau2[[#This Row],[Total du rôle]]-K184) -> 0
H185: 0 | L185: =SUM(Tableau2[[#This Row],[Total du rôle]]-K185) -> 0
H186: 0 | L186: =SUM(Tableau2[[#This Row],[Total du rôle]]-K186) -> 0
H187: 0 | L187: =SUM(Tableau2[[#This Row],[Total du rôle]]-K187) -> 0
H188: 0 | L188: =SUM(Tableau2[[#This Row],[Total du rôle]]-K188) -> 0
H189: 0 | L189: =SUM(Tableau2[[#This Row],[Total du rôle]]-K189) -> 0
H190: 0 | L190: =SUM(Tableau2[[#This Row],[Total du rôle]]-K190) -> 0
H191: 0 | L191: =SUM(Tableau2[[#This Row],[Total du rôle]]-K191) -> 0
H192: 0 | L192: =SUM(Tableau2[[#This Row],[Total du rôle]]-K192) -> 0
H193: 0 | L193: =SUM(Tableau2[[#This Row],[Total du rôle]]-K193) -> 0
H194: 0 | L194: =SUM(Tableau2[[#This Row],[Total du rôle]]-K194) -> 0
H195: 0 | L195: =SUM(Tableau2[[#This Row],[Total du rôle]]-K195) -> 0
H196: =SUM(F196:G196) -> 0 | L196: =SUM(Tableau2[[#This Row],[Total du rôle]]-K196) -> 0
H197: 0 | L197: =SUM(Tableau2[[#This Row],[Total du rôle]]-K197) -> 0
H198: 0 | L198: =SUM(Tableau2[[#This Row],[Total du rôle]]-K198) -> 0
H199: 0 | L199: =SUM(Tableau2[[#This Row],[Total du rôle]]-K199) -> 0
H200: 0 | L200: =SUM(Tableau2[[#This Row],[Total du rôle]]-K200) -> 0
... 4284 more rows

Sheet list (hidden)
A1: ذكر | B1: متزوج
A2: انثى | B2: اعزب
B3: مطلق
